Cogmind - Beta 13 @@@ ROGUE MODE // 2024.06.06 @ 22:29:37 Player: Kat Result: Self-destructed Performance ------------- Evolutions (1) 500 Regions Visited (3) 600 Robots Destroyed (44) 220 Value Destroyed (973) 973 Prototype IDs (4) 80 Alien Tech Used (0) 0 Bonus (18) 18 TOTAL SCORE: 2391 Bonus ------- High Alert Combat Kills 19 Follower Combat Kills 131 Friendly Fire -132 Cogmind --------- Core Integrity 288/400 Matter 300/300 Energy 100/100 System Corruption 0% Temperature Cool (0) Movement Treading (160) Location -9/Materials Parts ------- > --- POWER (1) -------- (None) > --- PROPULSION (2) --- Light Treads Light Treads > --- UTILITY (4) ------ Medium Storage Unit Experimental Sensor Array Light Armor Plating Hacking Suite > --- WEAPON (2) ------- Improved Light Cannon Improved Light Cannon > --- INVENTORY (10) --- Light Treads Light Treads Improved Heat Sink Sensor Array Seismic Detector Utility Shielding Light Armor Plating Hammer Peak State ------------ > --- POWER ------------ Light Ion Engine > --- PROPULSION ------- Light Treads Light Treads > --- UTILITY ---------- Medium Storage Unit Experimental Sensor Array Light Armor Plating Hacking Suite > --- WEAPON ----------- Improved Light Cannon Improved Light Cannon > --- INVENTORY -------- Light Treads Light Treads Light Treads Improved Heat Sink Sensor Array Seismic Detector Utility Shielding Hammer [Rating: 22] Favorites ----------- Power Light Ion Engine Engine Light Ion Engine Propulsion Light Treads Treads Light Treads Leg Aluminum Leg Utility Medium Storage Unit Device Heat Sink Storage Medium Storage Unit Hackware Hacking Suite Protection Light Armor Plating Weapon Improved Light Cannon Energy Gun Improved Medium Laser Ballistic Cannon Improved Light Cannon Launcher Grenade Launcher Impact Weapon Hammer Build | -11 -10 -10 -9 ------- Run | Yrd Mat Min Mat Slots Evolved 2 | . . . 2 Power . | . . . . Propulsion . | . . . . Utility 2 | . . . 2 Weapon . | . . . . Parts Attached 26 | 7 12 . 7 Power 2 | 1 1 . . Engine 2 | 1 1 . . Core . | . . . . Reactor . | . . . . Propulsion 6 | 2 2 . 2 Treads 4 | . 2 . 2 Leg 2 | 2 . . . Wheel . | . . . . Hover . | . . . . Flight . | . . . . Utility 8 | 2 3 . 3 Device 3 | 1 1 . 1 Storage 2 | 1 1 . . Processor . | . . . . Hackware 1 | . . . 1 Protection 2 | . 1 . 1 Artifact . | . . . . Weapon 10 | 2 6 . 2 Energy Gun 4 | 2 2 . . Energy Cannon . | . . . . Ballistic Gun . | . . . . Ballistic Cannon 4 | . 2 . 2 Launcher 1 | . 1 . . Special Weapon . | . . . . Impact Weapon 1 | . 1 . . Slashing Weapon . | . . . . Piercing Weapon . | . . . . Special Melee Weapon . | . . . . Unidentified Prototypes 2 | . 1 . 1 Parts Lost 3 | . . . 3 Power 1 | . . . 1 Propulsion . | . . . . Utility 1 | . . . 1 Weapon 1 | . . . 1 Highest Loss Streak 2 | . . . 2 To Critical Strikes . | . . . . Average Slot Usage (%) 99 | . 99 100 96 Engine 13 | . 14 14 10 Treads 19 | . 17 28 22 Leg 6 | . 10 . . Device 6 | . 6 . 11 Storage 13 | . 14 14 11 Hackware 1 | . . . 11 Protection 8 | . 7 14 9 Energy Gun 9 | . 13 . . Ballistic Cannon 11 | . 13 . 15 Launcher 2 | . . 14 2 Impact Weapon 2 | . . 14 3 Naked Turns . | . . . . Heaviest Build 26 | 15 26 21 25 Greatest Support 40 | 20 40 40 40 Greatest Overweight (x) 2 | 2 1 . . Average Overweight (x) . | . . . . Largest Inventory Capacity 10 | 8 10 10 10 Average Capacity 9 | 7 9 10 10 Most Carried 10 | 3 10 10 10 Average Carried 7 | 2 7 9 7 Final Capacity 10 | 8 10 10 10 Final Carried 10 | 3 9 10 8 Class Distribution -------------------- 87% | Mutant 12% | Scavenger-Mutant Dominant Class ---------------- Mutant | -10/Materials Mutant | -10/Mines Scavenger-Mutant | -9/Materials Resources | -11 -10 -10 -9 ----------- Run | Yrd Mat Min Mat Matter Collected 988 | 270 147 257 314 Remotely . | . . . . Salvage Created 1353 | 135 577 63 578 Parts 73 | 8 35 3 27 Haulers Intercepted 3 | . 2 . 1 Recyclers Shooed 1 | 1 . . . Parts Field Recycled . | . . . . Retrieved Matter . | . . . . Parts Self-Destructed . | . . . . Prevented . | . . . . Kills | -11 -10 -10 -9 ------- Run | Yrd Mat Min Mat Combat Hostiles Destroyed 24 | . 13 . 11 Melee 1 | . . . 1 Guns 9 | . 9 . . Cannons 13 | . 4 . 9 Classes Destroyed 11 | 2 6 1 2 Worker 3 | . 3 . . Tunneler 3 | 3 . . . Hauler 3 | . 2 . 1 Recycler 3 | 1 . . 2 Mechanic 1 | . . 1 . Operator 1 | . 1 . . Watcher 5 | . 3 . 2 Swarmer 3 | . 3 . . Grunt 17 | . 10 . 7 Brawler 2 | . . . 2 Sentry 2 | . . . 2 Thug 1 | . . 1 . Best Kill Streak 4 | 2 4 1 4 Combat Bots Only 4 | . 4 . 3 Max Kills in Single Turn 2 | 1 2 1 2 Gunslinging . | . . . . Exploded . | . . . . Melee 1 | . . . 1 Uniques/NPCs Destroyed . | . . . . Combat | -11 -10 -10 -9 -------- Run | Yrd Mat Min Mat Hostile Shots Fired 125 | . 47 16 62 Missed 35 | . 19 3 13 Damage Taken 1075 | . 284 190 601 Core 166 | . 21 33 112 Absorbed by Shields . | . . . . Core Remaining (%) 89 | 100 . 78 . Volleys Fired 92 | 5 54 . 33 Largest 2 | 2 2 . 2 Hottest 112 | 100 112 . 78 Shots Fired 185 | 10 108 1 66 Gun 76 | 10 66 . . Cannon 108 | . 42 . 66 Launcher 1 | . . 1 . Special . | . . . . Kinetic 108 | . 42 . 66 Thermal 76 | 10 66 . . Explosive 1 | . . 1 . Electromagnetic . | . . . . Robot Hit Streak 8 | 6 8 4 7 Robot Miss Streak 5 | . 5 . 4 Penetration Max . | . . . . Secondary Targets . | . . . . Shots Hit Robots 118 | 6 59 6 47 Core Hits 44 | 5 21 2 16 Critical Kills 1 | . . . 1 Critical Parts Destroyed 1 | . . 1 . Critical Strikes 10 | 1 3 1 5 Burn 4 | 1 3 . . Blast 4 | . . . 4 Smash 2 | . . 1 1 Melee Attacks 22 | . . 7 15 Impact 22 | . . 7 15 Slashing . | . . . . Piercing . | . . . . Sneak Attacks 1 | . . 1 . Combat Hostiles . | . . . . Follow-up Attacks . | . . . . Damage Inflicted 2502 | 72 1185 191 1054 Guns 691 | 72 619 . . Cannons 1422 | . 545 . 877 Explosions 32 | . . 32 . Melee 334 | . . 159 175 Ramming 23 | . 21 . 2 Kinetic 1422 | . 545 . 877 Thermal 691 | 72 619 . . Explosive 32 | . . 32 . Electromagnetic . | . . . . Impact 334 | . . 159 175 Slashing . | . . . . Piercing . | . . . . Highest Corruption 2 | . 2 2 . Average Corruption 2 | . 2 2 . Corruption Purged . | . . . . Corruption Blocked . | . . . . Effects 23 | . 19 4 . Message Errors 1 | . 1 . . Matter Fused 10 | . 9 1 . Heat Flow Errors 1 | . . 1 . Energy Discharges 2 | . 1 1 . Data Loss (minor) 3 | . 3 . . Data Loss (major) 2 | . 2 . . Misfires 1 | . . 1 . Alerts 3 | . 3 . . Overload Shots . | . . . . Overflow Damage 146 | . 87 41 18 Projectiles 105 | . 87 . 18 Explosions . | . . . . Melee 41 | . . 41 . Knockbacks 13 | . 6 1 6 Impact 1 | . . 1 . Kinetic 11 | . 5 . 6 Secondary 1 | . 1 . . Self-Inflicted Damage 37 | . . 37 . Shots 1 | . . 1 . Rammed 4 | . 3 . 1 Targets Rammed 6 | . 5 . 1 Kicked 1 | . 1 . . Crushed 1 | . 1 . . Highest Temperature 310 | 117 310 174 277 Average Temperature 87 | 52 73 88 120 Received Heat Transfer 450 | . 102 84 264 Effects 3 | . 1 . 2 Energy Bleed 2 | . . . 2 Matter Decay 1 | . 1 . . Siege Activations . | . . . . Robots Corrupted . | . . . . Combat Hostiles . | . . . . Parts Fried 1 | . . 1 . Impact Corruptions 3 | . . 2 1 Robots Melted . | . . . . Combat Hostiles . | . . . . Parts Melted 9 | 4 5 . . Heat Transferred 1887 | 296 1591 . . Parts Sabotaged . | . . . . Parts Stolen . | . . . . Parts Stripped . | . . . . Power Chain Reactions . | . . . . Alert | -11 -10 -10 -9 ------- Run | Yrd Mat Min Mat Peak Influence 452 | 20 163 212 452 Initial 82 | . 13 27 82 Average 110 | 7 69 162 236 Maximum Alert Level 2 | . . 1 2 Low Security (%) 81 | 100 100 27 54 Level 1 16 | . . 72 32 Level 2 2 | . . . 13 Level 3 . | . . . . Level 4 . | . . . . Level 5 . | . . . . High Security . | . . . . Max Security . | . . . . Squads Dispatched 7 | . 4 1 2 Investigation 3 | . 3 . . Extermination . | . . . . Reinforcement 3 | . 1 . 2 Assault 1 | . . 1 . Garrison . | . . . . Intercept . | . . . . Searches Triggered . | . . . . Construction Impeded 1 | . . . 1 Haulers Reinforced . | . . . . Active Scanning Responses . | . . . . Cargo Convoy Interrupts . | . . . . Stealth | -11 -10 -10 -9 --------- Run | Yrd Mat Min Mat Distress Signals 3 | . . . 3 Communications Jammed . | . . . . Distress Signals . | . . . . Times Spotted 46 | . 22 4 20 Peak Tracking Total 7 | . 4 7 5 Tactical Retreats 1 | . . . 1 Traps | -11 -10 -10 -9 ------- Run | Yrd Mat Min Mat Traps Triggered 3 | . 3 . . Indirectly . | . . . . Trap Hack Attempts . | . . . . Triggered . | . . . . Disarmed . | . . . . Reprogrammed . | . . . . Reused . | . . . . Traps Extracted . | . . . . Installed . | . . . . Triggered . | . . . . Machines | -11 -10 -10 -9 ---------- Run | Yrd Mat Min Mat Machines Disabled 2 | . 1 . 1 Max in Single Turn 1 | . 1 . 1 Machines Repaired . | . . . . Machines Dismantled . | . . . . Machines Sabotaged . | . . . . Overloaded Fab Kills . | . . . . Hacking | -11 -10 -10 -9 --------- Run | Yrd Mat Min Mat Machines Accessed 7 | . 7 . . Terminals 6 | . 6 . . Fabricators . | . . . . Repair Stations 1 | . 1 . . Recycling Units . | . . . . Scanalyzers . | . . . . Garrison Access . | . . . . Total Hacks 19 | . 19 . . Successful 11 | . 11 . . Failed 8 | . 8 . . Catastrophic 1 | . 1 . . Database Lockouts . | . . . . Manual 16 | . 16 . . Terminals 16 | . 16 . . Fabricators . | . . . . Repair Stations 3 | . 3 . . Recycling Units . | . . . . Scanalyzers . | . . . . Garrison Access . | . . . . Terminal Hacks 2 | . 2 . . Prototype ID Bank 1 | . 1 . . Recall Investigation 1 | . 1 . . Fabricator Hacks . | . . . . Repair Station Hacks 1 | . 1 . . Scan Component 1 | . 1 . . Recycling Unit Hacks . | . . . . Scanalyzer . | . . . . Garrison Access Hacks . | . . . . Unauthorized Hacks 8 | . 8 . . Terminals 8 | . 8 . . Assimilate 5 | . 5 . . Botnet 2 | . 2 . . Operators 1 | . 1 . . Fabricators . | . . . . Repair Stations . | . . . . Recycling Units . | . . . . Scanalyzers . | . . . . Garrison Access . | . . . . Data Cores Recovered . | . . . . Used . | . . . . Hacking Detections 6 | . 6 . . Full Trace Events 3 | . 3 . . Feedback Events . | . . . . Feedback Blocked . | . . . . Robot Schematics Acquired . | . . . . Robots Built . | . . . . Authchips . | . . . . Time . | . . . . Total Robot Build Rating . | . . . . Part Schematics Acquired . | . . . . Parts Built . | . . . . Authchips . | . . . . Time . | . . . . Total Part Build Rating . | . . . . Parts Repaired . | . . . . Time . | . . . . Parts Recycled . | . . . . Recycled Matter . | . . . . Retrieved Matter . | . . . . Retrieved Components . | . . . . Parts Scanalyzed . | . . . . Part Schematics Acquired . | . . . . Parts Damaged . | . . . . Bothacking | -11 -10 -10 -9 ------------ Run | Yrd Mat Min Mat Used RIF Installer . | . . . . Robots Hacked . | . . . . Non-combat . | . . . . Combat . | . . . . Robot Hacks Applied . | . . . . Relay Couplers Released . | . . . . Fabnet Peak Effective % . | . . . . Robots Rewired . | . . . . Allies Hacked . | . . . . Hacks Repelled . | . . . . Allies | -11 -10 -10 -9 -------- Run | Yrd Mat Min Mat Total Allies 1 | . . 1 . Largest Group 1 | . . 1 . Highest-Rated Group 31 | . . 31 . Highest-Rated Ally 31 | . . 31 . Total Orders . | . . . . Ally Attacks 11 | . . 11 . Total Damage 215 | . . 215 . Kills 7 | . . 7 . Allies Corrupted . | . . . . Allies Melted . | . . . . Intel | -11 -10 -10 -9 ------- Run | Yrd Mat Min Mat Robot Analysis Total . | . . . . Derelict Logs Recovered 1 | . . 1 . Drone Launches . | . . . . Drone Recoveries . | . . . . Exploration | -11 -10 -10 -9 ------------- Run | Yrd Mat Min Mat Turns Passed 2265 | 91 1438 343 393 Spaces Moved 1128 | 51 751 187 139 Core 9 | 9 . . . Treads 788 | . 462 187 139 Legs 331 | 42 289 . . Wheels . | . . . . Hover . | . . . . Flight . | . . . . Fastest Speed 50 | 50 120 160 160 Average Speed 148 | 117 145 160 160 Slowest Speed 190 | 190 190 160 160 Overloaded Moves . | . . . . Propulsion Burnouts . | . . . . Robots Hopped . | . . . . Cave-ins Triggered . | . . . . Exploration Rate (%) 38 | 4 92 38 19 Regions Visited 3 Branch Regions 1 Pre-discovered Areas 2 | . . 2 . Known Exits Taken . | . . . . Unknown Exits Taken 3 | 1 1 1 . Scrap Searched . | . . . . Spaces Dug . | . . . . Terrain Destroyed 17 | . 2 11 4 Melee . | . . . . Projectile 6 | . 2 . 4 AOE 11 | . . 11 . Terrain Rammed . | . . . . Walls Destroyed . | . . . . Machines Disabled . | . . . . Actions | -11 -10 -10 -9 --------- Run | Yrd Mat Min Mat Total 1492 | 68 989 219 216 Wait 177 | 3 136 23 15 Move 1125 | 50 750 186 139 Hop . | . . . . Pick Up 23 | 3 15 2 3 Fast Attach 9 | 7 2 . . Attach 6 | . 2 . 4 Detach 3 | . 3 . . Swap 11 | . 8 . 3 Drop 18 | . 14 1 3 Fire 92 | 5 54 . 33 Melee 22 | . . 7 15 Ram . | . . . . Kick 1 | . 1 . . Crush 5 | . 4 . 1 Escape Stasis . | . . . . Rewire . | . . . . Trap . | . . . . Miscellaneous . | . . . . Route ------- -11/Scrapyard -10/Materials (discovered 4 exits: [*Mat x3] / [*Min]) -10/Mines -9/Materials History --------- Turn | Location | Event 22 | -11/Scrapyard | Discovered new exit (range 16) 92 | -11/Scrapyard | Entered Materials 300 | -10/Materials | Build established: Mutant 490 | -10/Materials | Discovered new exit (range 8) 886 | -10/Materials | Discovered new exit (range 4) 989 | -10/Materials | Discovered new exit (range 12) 1048 | -10/Materials | Discovered new exit (range 15) 1392 | -10/Materials | Derelicts attacked the area 1530 | -10/Materials | Entered Mines 1531 | -10/Mines | Met a Derelict testing a Signal Generator 1635 | -10/Mines | Learned location of Recycling (-9) 1689 | -10/Mines | Found a damaged Exp. Sensor Array with a note attached 1692 | -10/Mines | Found Prototype Device 1800 | -10/Mines | Learned location of Storage (-9) 1865 | -10/Mines | Discovered new exit (range 5) 1873 | -10/Mines | Entered Materials 1873 | -9/Materials | Evolved 2 slots: Utility x2 1873 | -9/Materials | Identified Exp. Sensor Array 2266 | -9/Materials | Self-destructed Last Messages --------------- 02224_ Acquired 15 matter. 02227_ K-01 Serf collects debris. 02231_ Lgt. Ion Engine destroyed. 02232_ Overheating: Energy bleed (-22). 02234_ K-01 Serf collects debris. 02235_ Destroyed Signal Interpreter. 02235_ W-16 Scout Hover Unit blasted off. 02235_ W-16 Scout knocked back. 02238_ K-01 Serf collects debris. 02242_ Overheating: Energy bleed (-10). 02244_ Y-45 Defender destroyed. 02244_ K-01 Serf collects debris. 02250_ R-06 Scavenger destroyed. 02250_ A-02 Transporter destroyed. 02250_ K-01 Serf collects debris. 02255_ Acquired 86 matter. 02255_ K-01 Serf collects debris. 02258_ Acquired 57 matter. 02258_ K-01 Serf collects debris. 02264_ U-05 Engineer builds a Wall. Map ----- +----------------------------------------------------+ | # ??????????????????????????? | | # ??????????????????????????? | | ## ###+#########???????????????????????????????? | | ?# # #??????????????????????????????????? | | ?# # #??????????????????????????????????? | | ?# # #??????????????????????????????????? | | ? # #??????????????????????????????????? | | # #??????????????????????????????????? | | # #??????????????????????????????????? | | ###### #??????????????????????????????????? | | ###### #??????????????????????????????????? | | ## #??????????????????????????????????? | | ######+####??????????????????????????????????? | | ###### #?????????????????????????????????????? | | " #% # #?????????????????????????????????????? | | ""[ +*[ # #?????????????????????????????????????? | | "" !#*% + #?????????????????????????????????????? | | "" =#/ # #?????????????????????????#???????????? | | " # #?#??????????????????????? ??????????? | | # # #????????????########## ??????????? | | ##########?#????????????+ ??????????? | | #????????????# s?????????? | | #??????##+#### =! ?????????? | | ###########%%**% =]%k]% s????????? | | ##### # "T"!#!%/== [[=%= s????????? | | #?????? # !=+ *u%%%@[k%!=% a [ ????????? | | #???????# """"" ==########+#######???????????????? | | #???????+ """"" ? #??## ????????????????????????? | | #???????# """"" #????"" ???????????????????????? | | #???????# #????"Y ??????????????????????? | | #???# + #????"" #?????????????????????? | | #???##+#########+##????? #?????????????????????? | | #??????????????# #?????? #?????????????????????? | | #??????????????# #?????? ?#?????????????????????? | | #??????????????# #???????????????????????????????? | | #??????????????# #???????????????????????????????? | | #??????????????# #???????????????????????????????? | | #??????????????# #???????????????????????????????? | | ???????????????# #???????????????????????????????? | | ???????????????# #???????????????????????????????? | | ????????#+######+#####???????????????????????????? | | ????????# ## #???????????????????????????? | | ????????# ## """"""" #???????????????????????????? | | ######### ## """"""" #???????????????????????????? | | # %"""""" #???????????????????????????? | | + """"""" #???????????????????????????? | | % # """"""" #???????????????????????????? | | ####### # #???????????????????????????? | | ???#?#% # #???????????????????????????? | | ????# ###########???????????????????????????? | +----------------------------------------------------+ Best States ------------- Heat Dissipation 35 Energy Generation 10 Energy Capacity 250 Matter Stores 300 Matter Capacity 300 Sight Range 16 Robot Scan Range 20 Terrain Scan Density 10 Armor Coverage 150 Evasion (%) 55 Recoil Reduction 2 Offensive Hacking 10 Item Schematics ----------------- None Robot Schematics ------------------ None Fabricated ------------ Nothing Alien Tech Used ----------------- None Achievements -------------- Maybe Next Time I'll Detach My Launcher Challenges ------------ None Game ------ Seed PowerRecoilWings Manual? 0 Play Time 00:21:08 Cumulative 30.0 hours Start 2024.06.06 @ 22:12:08 End 2024.06.06 @ 22:29:37 Sessions 1 Manual Loads 0 Difficulty Rogue Special Mode None Game No. 65 Rogue 65 Adventurer 0 Explorer 0 Win Type - Total 0 Types 0/0/0/0/0/0/0/0/0 Lore% 21 Gallery% 27 Achievement% 23 Wizard Run 0 Options --------- Layout 0 ASCII 0 Keyboard 0 Movement Mouse Keybinds 0 Fullscreen 2 Font 18/Terminus Map View 76x50 Zoom Use 0% Tactical HUD 1 Map Filters NONE Filters NONE Steam 1 RUN: dc7e8597-d7a9-4395-8747-c9d0bbd1f2ca